bitfinex/quotes_SOLUSD_20251106
["timestamp","ask_amount","ask_price","bid_price","bid_amount"]
[1762440208562,0.67,158.47,158.45,6.83674359]
[1762440208759,0.67,158.47,158.46,6.83674359]
[1762440209274,0.67,158.47,158.45,6.83674359]
[1762440209601,0.67,158.47,158.43,6.83674359]
[1762440209781,6.31113916,158.45,158.39,7.88]
[1762440209986,0.67,158.44,158.39,7.88]
[1762440210159,7.88,158.43,158.37,6.83674359]
[1762440210355,7.88,158.43,158.39,6.83674359]
[1762440210556,0.67,158.42,158.39,6.83674359]
[1762440211184,0.67,158.42,158.38,6.83674359]
[1762440211493,6.97890516,158.4,158.34,6.83674359]
[1762440211702,6.97890516,158.4,158.28,0.1]
[1762440211703,28.93688881,158.37,158.31,14.71674359]
[1762440211857,6.97890516,158.36,158.3,6.83674359]
[1762440212177,0.81216157,158.36,158.3,6.83674359]
[1762440212381,0.81216157,158.36,158.32,6.83674359]
[1762440212572,0.14216157,158.36,158.33,6.83674359]
[1762440212781,7.64890516,158.36,158.28,7.98]
[1762440212958,6.97890516,158.34,158.28,0.1]
[1762440213156,0.14216157,158.34,158.3,6.83674359]
[1762440213352,0.67,158.33,158.28,6.93674359]
[1762440213877,6.45861578,158.32,158.28,6.93674359]
[1762440214071,6.45861578,158.32,158.28,0.1]
[1762440214277,0.67,158.31,158.28,0.1]
[1762440215189,0.14216157,158.3,158.28,0.1]
[1762440215365,8.02216157,158.3,158.28,0.1]
[1762440215687,7.12968004,158.29,158.28,0.1]
[1762440215982,0.81216157,158.29,158.28,0.1]
[1762440216370,0.67,158.29,158.28,0.1]
[1762440216683,7.12968004,158.29,158.28,0.1]
[1762440216871,0.14216157,158.28,158.22,0.1]
[1762440217075,7.65890516,158.28,158.22,6.93674359]
[1762440217269,0.82216157,158.28,158.23,6.83674359]
[1762440217584,7.88,158.29,158.27,6.83674359]
[1762440217798,0.68,158.31,158.28,6.83674359]
[1762440218100,6.9968209,158.31,158.28,6.83674359]
[1762440218260,0.68,158.31,158.28,6.83674359]
[1762440218759,6.99678596,158.31,158.22,8.58]
[1762440218957,6.97890516,158.3,158.23,6.83674359]
[1762440219267,6.97890516,158.3,158.22,7.98]
[1762440219268,0.14216157,158.28,158.22,6.93674359]
[1762440219571,0.14216157,158.28,158.22,0.1]
[1762440219572,0.14216157,158.26,158.22,0.1]
[1762440219771,6.46207561,158.23,158.22,0.1]
[1762440220067,16.2509033,158.23,158.22,0.1]
[1762440220259,16.9309033,158.23,158.22,0.1]
[1762440220772,21.41416157,158.23,158.22,0.1]
[1762440221177,27.73407561,158.23,158.22,0.1]
[1762440221375,44.35964689,158.23,158.22,0.1]
[1762440221585,37.5229033,158.23,158.22,0.1]
[1762440221789,31.20298926,158.23,158.22,0.1]
[1762440221989,37.5229033,158.23,158.22,0.1]
[1762440222187,44.35964689,158.23,158.22,0.1]
[1762440222374,37.5229033,158.23,158.22,0.1]
[1762440223195,44.35964689,158.23,158.22,0.1]
[1762440223399,38.03973285,158.23,158.22,0.1]
[1762440223699,31.20298926,158.23,158.22,0.1]
[1762440224005,37.5229033,158.23,158.22,0.1]
[1762440224883,7.88,158.25,158.22,0.1]
[1762440225081,0.68,158.24,158.22,0.1]
[1762440225978,6.99961606,158.24,158.22,0.1]
[1762440226277,20.592,158.26,158.23,6.83674359]
[1762440226476,0.68,158.29,158.25,6.83674359]
[1762440227104,0.68,158.29,158.26,6.83674359]
[1762440227266,0.68,158.29,158.24,6.83674359]
[1762440227466,0.14216157,158.27,158.23,6.83674359]
[1762440227685,0.14216157,158.27,158.22,6.93674359]
[1762440227890,0.68,158.26,158.23,6.83674359]
[1762440228075,0.14216157,158.25,158.22,6.93674359]
[1762440228485,0.82216157,158.25,158.22,6.93674359]
[1762440229098,0.68,158.25,158.23,6.83674359]
[1762440229770,0.68,158.25,158.22,6.93674359]
[1762440229970,28.472,158.28,158.23,6.83674359]
[1762440230209,35.46999396,158.28,158.24,6.83674359]
[1762440230378,0.82216157,158.27,158.22,6.93674359]
[1762440230809,0.68,158.27,158.22,0.1]
[1762440230975,0.68,158.32,158.23,0.6]
[1762440231173,20.592,158.3,158.25,6.83674359]
[1762440231509,20.592,158.3,158.22,6.4202218]
[1762440231510,0.14216157,158.27,158.22,13.25700687]
[1762440231809,0.68,158.26,158.22,6.93674359]
[1762440232484,6.99876012,158.26,158.22,6.93674359]
[1762440232880,6.99876012,158.26,158.22,0.1]
[1762440233071,6.31876012,158.26,158.22,6.93674359]
[1762440233272,6.31876012,158.26,158.22,0.1]
[1762440233273,20.73416157,158.23,158.22,0.1]
[1762440233498,27.57090516,158.23,158.16,6.83674359]
[1762440233667,27.57090516,158.23,158.12,9.78882769]
[1762440233668,0.14216157,158.22,158.2,6.83674359]
[1762440233872,0.14216157,158.22,158.13,0.67]
[1762440233873,0.14216157,158.22,158.19,6.83674359]
[1762440234293,21.292,158.24,158.2,6.83674359]
[1762440234490,0.14216157,158.23,158.2,6.83674359]
[1762440234697,0.14216157,158.23,158.19,6.83674359]
[1762440234869,0.14216157,158.23,158.2,6.83674359]
[1762440235073,20.592,158.24,158.21,6.83674359]
[1762440235269,26.91165431,158.24,158.2,6.83674359]
[1762440235496,20.592,158.24,158.2,6.83674359]
[1762440235694,0.7,158.24,158.21,6.83674359]
[1762440235881,7.01952721,158.24,158.21,6.83674359]
[1762440236083,0.7,158.24,158.21,6.83674359]
[1762440236303,0.7,158.24,158.18,6.32191174]
[1762440236304,7.88,158.25,158.22,6.83674359]
[1762440236711,104.7,158.35,158.24,6.83674359]
[1762440236895,0.7,158.3,158.25,6.83674359]
[1762440237092,8.58,158.3,158.27,6.83674359]
[1762440237487,7.88,158.3,158.28,6.83674359]
[1762440237782,8.58,158.3,158.26,6.83674359]
[1762440237983,14.89746104,158.3,158.26,6.83674359]
[1762440238190,0.7,158.29,158.26,6.83674359]
[1762440238416,0.7,158.29,158.25,6.83674359]
[1762440238614,0.14216157,158.28,158.25,6.83674359]
[1762440238786,0.7,158.29,158.27,6.83674359]
[1762440238987,14.19746104,158.3,158.27,6.83674359]
[1762440239312,0.7,158.29,158.27,6.83674359]
[1762440239513,0.14216157,158.28,158.25,6.83674359]
[1762440239812,20.592,158.27,158.19,6.99141792]
[1762440240109,20.592,158.27,158.25,6.83674359]
[1762440240304,28.472,158.28,158.24,6.83674359]
[1762440240506,28.472,158.28,158.25,6.83674359]
[1762440240690,7.88,158.28,158.26,6.83674359]
[1762440240896,20.592,158.29,158.27,6.83674359]
[1762440241216,7.88,158.31,158.28,6.83674359]
[1762440241420,8.58,158.31,158.23,10.45882769]
[1762440241590,8.58,158.31,158.28,6.83674359]
[1762440242129,14.89676131,158.31,158.28,6.83674359]
[1762440242279,14.89676131,158.31,158.29,6.83674359]
[1762440242280,8.58,158.31,158.29,6.83674359]
[1762440242480,104.7,158.32,158.3,6.83674359]
[1762440242795,6.83674359,158.39,158.31,6.83674359]
[1762440242796,8.58,158.39,158.31,6.83674359]
[1762440242982,0.7,158.43,158.38,6.83674359]
[1762440243277,8.08,158.44,158.42,6.83674359]
[1762440243719,8.08,158.44,158.43,6.83674359]
[1762440243890,8.78,158.44,158.43,6.83674359]
[1762440244089,0.2,158.44,158.43,6.83674359]
[1762440244705,0.9,158.44,158.42,6.83674359]
[1762440244910,7.21158086,158.44,158.39,6.83674359]
[1762440245101,0.84216157,158.43,158.38,6.83674359]
[1762440245317,0.84216157,158.43,158.34,7.88]
[1762440245318,8.72216157,158.43,158.34,7.88]
[1762440245487,8.72216157,158.43,158.38,6.83674359]
[1762440245693,0.14216157,158.41,158.3,0.67]
[1762440245990,0.7,158.42,158.23,1.99999999]
[1762440245991,16.76773285,158.39,158.32,6.83674359]
[1762440246205,9.93098926,158.37,158.32,6.83674359]
[1762440246401,9.93098926,158.37,158.3,6.83674359]
[1762440246402,37.35973285,158.37,158.3,6.83674359]
[1762440246605,0.14216157,158.35,158.31,6.83674359]
[1762440247014,0.84216157,158.35,158.32,6.83674359]
[1762440247191,0.84216157,158.35,158.31,6.83674359]
[1762440247392,0.84216157,158.35,158.25,9.78882769]
[1762440247393,0.84216157,158.35,158.3,6.83674359]
[1762440247900,7.67890516,158.35,158.29,6.83674359]
[1762440248103,0.14216157,158.33,158.29,6.83674359]
[1762440248302,0.14216157,158.33,158.26,0.67]
[1762440248520,0.14216157,158.33,158.29,6.83674359]
[1762440248828,0.14216157,158.33,158.3,6.83674359]
[1762440248997,0.84216157,158.33,158.26,0.67]
[1762440249195,0.84216157,158.33,158.28,6.83674359]
[1762440249506,0.84216157,158.33,158.26,0.67]
[1762440249828,0.14216157,158.33,158.3,6.83674359]
[1762440250031,0.14216157,158.33,158.31,6.83674359]
[1762440250328,0.14216157,158.31,158.2,0.67]
[1762440250621,0.14216157,158.29,158.25,6.83674359]
[1762440250825,20.592,158.33,158.28,6.83674359]
[1762440251124,27.60719922,158.35,158.31,6.83674359]
[1762440251295,0.14216157,158.34,158.31,6.83674359]
[1762440251497,0.14216157,158.34,158.29,6.83674359]
[1762440251498,0.7,158.34,158.29,6.83674359]
[1762440251697,0.14216157,158.31,158.25,6.83674359]
[1762440252001,0.7,158.3,158.25,6.83674359]
[1762440252205,6.31751847,158.29,158.25,6.83674359]
[1762440252406,6.31751847,158.29,158.26,4.36670318]
[1762440252804,7.01725084,158.3,158.27,4.36670318]
[1762440253003,7.01725084,158.3,158.26,4.36670318]
[1762440253493,7.01725084,158.3,158.22,6.99031348]
[1762440253494,20.592,158.32,158.29,4.36670318]
[1762440253694,21.292,158.32,158.29,4.36670318]
[1762440253891,0.84216157,158.31,158.26,4.36670318]
[1762440254318,6.31711939,158.3,158.25,4.36670318]
[1762440254645,6.31711939,158.3,158.26,4.36670318]
[1762440254794,0.7,158.29,158.25,4.36670318]
[1762440254993,6.4589817,158.31,158.25,4.36670318]
[1762440255203,0.7,158.3,158.26,4.36670318]
[1762440256113,0.7,158.3,158.21,28.452]
[1762440256114,4.36670318,158.28,158.21,20.592]
[1762440256313,32.81870318,158.29,158.19,9.78882769]
[1762440256624,4.50886475,158.25,158.15,22.80088839]
[1762440256832,24.95870318,158.26,158.16,9.78882769]
[1762440257004,28.452,158.26,158.22,4.36670318]
[1762440257194,5.20886475,158.25,158.2,4.36670318]
[1762440257394,0.84216157,158.25,158.2,4.36670318]
[1762440257619,0.7,158.24,158.22,4.36670318]
[1762440257802,4.36670318,158.28,158.17,0.67]
[1762440257803,0.7,158.27,158.23,4.36670318]
[1762440258308,0.7,158.27,158.2,20.592]
[1762440258309,0.7,158.27,158.24,4.36670318]
[1762440258524,7.86,158.28,158.24,4.36670318]
[1762440258740,0.7,158.27,158.24,4.36670318]
[1762440259123,0.7,158.27,158.25,4.36670318]
[1762440259439,0.7,158.27,158.2,42.71559906]
[1762440259440,0.7,158.27,158.24,4.36670318]
[1762440259637,0.7,158.27,158.2,26.91281778]
[1762440259817,14.17811298,158.28,158.24,4.36670318]
[1762440260016,0.7,158.27,158.24,4.36670318]
[1762440260431,7.0184345,158.27,158.24,4.36670318]
[1762440260616,7.0184345,158.27,158.2,20.592]
[1762440260617,20.73416157,158.24,158.18,4.36670318]
[1762440260817,4.50886475,158.21,158.16,4.36670318]
[1762440261016,4.36670318,158.2,158.15,4.36670318]
[1762440261238,0.7,158.2,158.15,4.36670318]
[1762440261539,0.14216157,158.18,158.14,4.36670318]
[1762440261743,4.36670318,158.17,158.06,0.77]
[1762440261927,0.14216157,158.16,158.12,4.36670318]
[1762440262240,20.73416157,158.19,158.15,4.36670318]
[1762440262428,0.14216157,158.19,158.12,6.32431065]
[1762440262627,0.14216157,158.19,158.16,4.36670318]
[1762440262826,14.88122497,158.2,158.16,4.36670318]
[1762440263029,0.71,158.19,158.17,4.36670318]
[1762440263262,0.71,158.19,158.16,4.36670318]
[1762440263444,0.71,158.21,158.17,4.36670318]
[1762440263618,0.71,158.21,158.15,20.592]
[1762440263619,0.14216157,158.2,158.15,20.592]
[1762440263932,0.85216157,158.2,158.17,4.36670318]
[1762440264115,0.71,158.2,158.17,4.36670318]
[1762440264928,0.71,158.2,158.18,4.36670318]
[1762440265325,7.03020296,158.23,158.19,4.36670318]
[1762440265646,0.71,158.23,158.19,4.36670318]
[1762440265824,0.14216157,158.23,158.19,4.36670318]
[1762440266026,0.14216157,158.21,158.15,20.592]
[1762440266218,0.14216157,158.21,158.16,4.36670318]
[1762440266545,0.71,158.25,158.21,6.32071297]
[1762440266719,0.71,158.25,158.23,4.36670318]
[1762440266919,0.71,158.25,158.22,4.36670318]
[1762440267132,0.71,158.25,158.18,6.321544]
[1762440267639,0.71,158.25,158.22,4.36670318]
[1762440268934,7.02921656,158.25,158.22,4.36670318]
[1762440269122,7.02921656,158.25,158.21,4.36670318]
[1762440269445,0.71,158.25,158.22,4.36670318]
[1762440269626,0.71,158.25,158.23,4.36670318]
[1762440270040,0.71,158.25,158.18,22.1266535]
[1762440270247,0.71,158.25,158.18,22.8266535]
[1762440270433,0.71,158.25,158.22,4.36670318]
[1762440270635,0.71,158.25,158.23,4.36670318]
[1762440270836,7.02912296,158.25,158.18,16.50477936]
[1762440271033,7.02912296,158.25,158.21,4.36670318]
[1762440271345,7.02912296,158.25,158.17,14.18230017]
[1762440271346,5.21886475,158.24,158.17,14.18230017]
[1762440271543,0.85216157,158.24,158.19,4.36670318]
[1762440271755,0.71,158.23,158.19,4.36670318]
[1762440272737,7.03013598,158.23,158.19,4.36670318]
[1762440272935,0.71,158.23,158.2,4.36670318]
[1762440273137,13.07886475,158.22,158.13,6.3239107]
[1762440273327,0.71,158.21,158.17,4.36670318]
[1762440273525,0.85216157,158.24,158.2,4.36670318]
[1762440273743,0.85216157,158.24,158.14,11.12117877]
[1762440273744,0.85216157,158.24,158.21,4.36670318]
[1762440274138,0.71,158.24,158.22,4.36670318]
[1762440274925,7.02951766,158.24,158.22,4.36670318]
[1762440275456,0.71,158.24,158.22,4.36670318]
[1762440275761,0.71,158.23,158.18,20.592]
[1762440276064,0.71,158.23,158.2,4.36670318]
[1762440277170,7.02996647,158.23,158.21,4.36670318]
[1762440277350,7.02996647,158.23,158.19,4.36670318]
[1762440277526,0.86216157,158.22,158.18,4.36670318]
[1762440277721,0.14216157,158.22,158.19,4.36670318]
[1762440278123,0.86216157,158.22,158.18,4.36670318]
[1762440278351,0.86216157,158.22,158.15,29.152]
[1762440278352,13.08886475,158.22,158.16,4.36670318]
[1762440278553,13.08886475,158.22,158.15,7.86]
[1762440278767,0.14216157,158.2,158.15,7.86]
[1762440278961,0.14216157,158.2,158.17,4.36670318]
[1762440279170,7.18366786,158.2,158.17,4.36670318]
[1762440279690,0.72,158.19,158.17,4.36670318]
[1762440280632,0.72,158.19,158.16,4.36670318]
[1762440281051,6.32231143,158.17,158.1,6.32511068]
[1762440281252,0.14216157,158.16,158.12,4.36670318]
[1762440281646,0.86216157,158.16,158.12,4.36670318]
[1762440281853,4.50886475,158.14,158.08,4.36670318]
[1762440282168,8.00216157,158.14,158.1,4.36670318]
[1762440282357,8.72216157,158.14,158.1,4.36670318]
[1762440282558,0.72,158.13,158.1,4.36670318]
[1762440282956,0.72,158.13,158.06,0.8]
[1762440282957,0.72,158.13,158.09,4.36670318]
[1762440283273,0.14216157,158.12,158.07,6.32621761]
[1762440283762,0.14216157,158.12,158.07,4.36670318]
[1762440283763,0.72,158.11,158.07,4.36670318]
[1762440283953,0.72,158.11,158.08,4.36670318]
[1762440285184,7.04478621,158.11,158.06,6.42666782]
[1762440285551,0.72,158.11,158.06,6.42666782]
[1762440285758,6.32393289,158.13,158.1,4.36670318]
[1762440285968,0.14216157,158.13,158.09,4.36670318]
[1762440286166,0.72,158.12,158.08,4.36670318]
[1762440286874,0.72,158.12,158.09,4.36670318]
[1762440287076,7.86,158.14,158.11,4.36670318]
[1762440287274,14.15553087,158.17,158.13,4.36670318]
[1762440287275,0.72,158.17,158.13,4.36670318]
[1762440287477,7.86,158.18,158.16,4.36670318]
[1762440287686,10.50882769,158.21,158.17,4.36670318]
[1762440287687,7.04079748,158.21,158.17,4.36670318]
[1762440287876,0.72,158.2,158.18,4.36670318]
[1762440288387,7.86,158.21,158.19,4.36670318]
[1762440288585,8.58,158.23,158.2,4.36670318]
[1762440288786,0.14216157,158.22,158.2,4.36670318]
[1762440288996,0.72,158.22,158.18,4.36670318]
[1762440289558,0.72,158.22,158.17,22.12802712]
[1762440289767,0.72,158.25,158.21,4.36670318]
[1762440289990,0.14216157,158.24,158.21,4.36670318]
[1762440290172,21.312,158.25,158.21,4.36670318]
[1762440290371,0.72,158.25,158.22,4.36670318]
[1762440290601,7.86,158.26,158.23,4.36670318]
[1762440290776,7.86,158.26,158.24,4.36670318]
[1762440290974,0.72,158.28,158.25,4.36670318]
[1762440291487,7.03792252,158.28,158.25,4.36670318]
[1762440291691,0.72,158.28,158.25,4.36670318]
[1762440291990,0.72,158.27,158.25,4.36670318]
[1762440292175,0.72,158.27,158.24,4.36670318]
[1762440292377,0.72,158.27,158.23,4.36670318]
[1762440293089,7.02763129,158.29,158.25,4.36670318]
[1762440293291,0.14216157,158.28,158.25,4.36670318]
[1762440293471,7.17026999,158.28,158.24,4.36670318]
[1762440293666,0.85216157,158.28,158.24,4.36670318]
[1762440293865,7.17018435,158.28,158.23,4.36670318]
[1762440294095,0.85216157,158.28,158.23,4.36670318]
[1762440294279,28.452,158.3,158.26,4.36670318]
[1762440294481,29.162,158.3,158.26,4.36670318]
[1762440294698,29.162,158.3,158.25,4.36670318]
[1762440294699,0.71,158.29,158.25,4.36670318]
[1762440294892,0.71,158.29,158.23,4.36670318]
[1762440294893,0.14216157,158.28,158.23,4.36670318]
[1762440295082,0.14216157,158.28,158.24,4.36670318]
[1762440295395,6.3183168,158.27,158.23,4.36670318]
[1762440295590,6.3183168,158.27,158.22,4.36670318]
[1762440295767,0.85216157,158.28,158.24,4.36670318]
[1762440295963,7.17021491,158.28,158.24,4.36670318]
[1762440296396,7.17021491,158.28,158.25,4.36670318]
[1762440296397,0.14216157,158.28,158.25,4.36670318]
[1762440296569,0.85216157,158.28,158.24,4.36670318]
[1762440296769,0.85216157,158.28,158.25,4.36670318]
[1762440297503,7.86,158.29,158.26,4.36670318]
[1762440297671,7.86,158.29,158.24,6.31947733]
[1762440297672,14.17765021,158.29,158.27,4.36670318]
[1762440297875,8.57,158.29,158.26,4.36670318]
[1762440298181,20.592,158.32,158.28,4.36670318]
[1762440298390,0.71,158.33,158.29,4.36670318]
[1762440298577,14.29769244,158.32,158.26,4.36670318]
[1762440298768,7.86,158.31,158.26,4.36670318]
[1762440298970,0.14216157,158.3,158.26,4.36670318]
[1762440299194,0.85216157,158.3,158.26,4.36670318]
[1762440299717,7.16929502,158.3,158.26,4.36670318]
[1762440299879,7.16929502,158.3,158.27,4.36670318]
[1762440299880,0.85216157,158.3,158.27,4.36670318]
[1762440300381,11.53601112,158.3,158.21,15.80165793]
[1762440300579,11.53601112,158.3,158.22,4.36670318]
[1762440300580,0.14216157,158.26,158.22,4.36670318]
[1762440300795,9.93098926,158.3,158.22,12.22670318]
[1762440301100,4.50886475,158.27,158.22,4.36670318]
[1762440301287,4.50886475,158.27,158.24,4.36670318]
[1762440301288,0.14216157,158.27,158.24,4.36670318]
[1762440301471,0.85216157,158.27,158.23,4.36670318]
[1762440301672,4.36670318,158.24,158.14,6.32351081]
[1762440301878,0.14216157,158.25,158.18,4.36670318]
[1762440301879,12.36886475,158.23,158.18,4.36670318]
[1762440302179,8.00216157,158.23,158.18,4.36670318]
[1762440302382,8.00216157,158.23,158.15,0.7]
[1762440302383,0.71,158.22,158.19,4.36670318]
[1762440302578,20.592,158.25,158.21,4.36670318]
[1762440302579,21.302,158.25,158.21,4.36670318]
[1762440302803,0.71,158.25,158.22,4.36670318]
[1762440303100,0.71,158.24,158.17,20.592]
[1762440303300,28.59416157,158.26,158.23,4.36670318]
[1762440303513,0.71,158.33,158.26,22.11550612]
[1762440304011,0.71,158.33,158.31,4.36670318]
[1762440304212,8.57,158.35,158.32,4.36670318]
[1762440304394,0.2,158.38,158.34,4.36670318]
[1762440304584,7.0243272,158.37,158.29,20.592]
[1762440304783,7.0243272,158.37,158.32,4.36670318]
[1762440304980,0.71,158.37,158.35,4.36670318]
[1762440305186,0.2,158.38,158.36,4.36670318]
[1762440305502,11.5906317,158.38,158.29,26.9094333]
[1762440305706,0.14216157,158.34,158.3,4.36670318]
[1762440306090,0.71,158.33,158.3,4.36670318]
[1762440306292,0.71,158.33,158.28,6.31783069]
[1762440306599,0.14216157,158.34,158.31,4.36670318]
[1762440306810,0.14216157,158.34,158.32,4.36670318]
[1762440306996,0.71,158.36,158.28,0.7]
[1762440307198,0.71,158.36,158.32,4.36670318]
[1762440307387,20.792,158.38,158.3,20.592]
[1762440307586,20.792,158.38,158.37,4.36670318]
[1762440307587,0.2,158.38,158.37,4.36670318]
[1762440307788,0.2,158.39,158.37,4.36670318]
[1762440307789,0.2,158.39,158.37,9.43340636]
[1762440308018,0.2,158.44,158.4,20.592]
[1762440308216,0.2,158.44,158.43,4.36670318]
[1762440308692,0.2,158.44,158.43,5.06670318]
[1762440308890,0.2,158.6,158.46,20.592]
[1762440308891,0.71,158.56,158.46,20.592]
[1762440309231,0.2,158.6,158.55,4.36670318]
[1762440309518,0.2,158.6,158.52,20.592]
[1762440309519,0.2,158.6,158.54,15.76874489]
[1762440309688,0.2,158.6,158.59,4.36670318]
[1762440310093,7.21520174,158.6,158.49,0.7]
[1762440310314,28.432,158.59,158.49,20.592]
[1762440310623,14.15553087,158.58,158.52,4.36670318]
[1762440310922,14.86553087,158.58,158.51,4.36670318]
[1762440311215,0.91,158.6,158.56,4.36670318]
[1762440311408,0.2,158.6,158.59,4.36670318]
[1762440311608,0.2,158.6,158.58,4.36670318]
[1762440311794,0.2,158.6,158.59,4.36670318]
[1762440313505,0.2,158.6,158.59,21.79165546]
[1762440313708,0.2,158.6,158.55,0.7]
[1762440313890,0.2,158.6,158.59,4.36670318]
[1762440314287,0.2,158.6,158.56,28.432]
[1762440314288,0.2,158.6,158.58,20.592]
[1762440314505,0.2,158.6,158.56,0.63067608]
[1762440314747,0.71,158.59,158.52,0.7]
[1762440314911,0.71,158.59,158.55,6.83001587]
[1762440315420,6.97217744,158.58,158.48,0.63099444]
[1762440315590,6.97217744,158.58,158.5,6.83001587]
[1762440315591,0.14216157,158.54,158.5,6.83001587]
[1762440315790,6.30676084,158.56,158.51,6.83001587]
[1762440315997,7.01676084,158.56,158.52,6.83001587]
[1762440316231,0.85216157,158.55,158.46,0.7]
[1762440316521,6.97217744,158.52,158.46,6.83001587]
[1762440316889,0.14216157,158.5,158.46,6.83001587]
[1762440317094,0.71,158.49,158.45,6.83001587]
[1762440317392,0.71,158.52,158.47,6.83001587]
[1762440317611,0.71,158.52,158.48,6.83001587]
[1762440317922,7.84,158.58,158.51,6.83001587]
[1762440318126,14.67001587,158.58,158.53,6.83001587]
[1762440318324,6.83001587,158.54,158.48,7.84]
[1762440318627,0.14216157,158.52,158.48,6.83001587]
[1762440318996,21.302,158.55,158.5,6.83001587]
[1762440319213,0.85216157,158.54,158.5,6.83001587]
[1762440319419,9.78882769,158.58,158.46,0.7]
[1762440319420,0.71,158.57,158.53,6.83001587]
[1762440319723,0.14216157,158.54,158.47,20.592]
[1762440319922,0.14216157,158.54,158.51,6.83001587]
[1762440320118,0.71,158.56,158.51,6.83001587]
[1762440320321,20.592,158.58,158.49,0.7]
[1762440320527,0.2,158.6,158.57,6.83001587]
[1762440320714,0.2,158.6,158.53,21.22279543]
[1762440320915,0.91,158.6,158.56,6.83001587]
[1762440321223,7.2154632,158.6,158.57,6.83001587]
[1762440321423,0.85216157,158.59,158.55,6.83001587]
[1762440321621,0.85216157,158.59,158.45,1.99999999]
[1762440321622,0.14216157,158.56,158.52,6.83001587]
[1762440321927,9.93098926,158.56,158.51,6.83001587]
[1762440322122,0.14216157,158.54,158.51,6.83001587]
[1762440322699,0.82216157,158.54,158.51,6.83001587]
[1762440323030,0.82216157,158.54,158.5,6.83001587]
[1762440323236,0.14216157,158.52,158.48,6.83001587]
[1762440323425,0.14216157,158.55,158.51,6.83001587]
[1762440323609,35.3986369,158.57,158.54,6.83001587]
[1762440323933,0.2,158.6,158.56,6.83001587]
[1762440324100,0.2,158.6,158.58,6.83001587]
[1762440324433,0.88,158.6,158.57,6.83001587]
[1762440324602,7.18527909,158.6,158.56,6.83001587]
[1762440324804,6.97217744,158.58,158.52,6.83001587]
[1762440325004,0.14216157,158.54,158.47,7.82]
[1762440325229,0.14216157,158.54,158.5,6.83001587]
[1762440325426,0.68,158.57,158.53,6.83001587]
[1762440325610,0.68,158.57,158.56,6.83001587]
[1762440325806,0.2,158.6,158.56,6.83001587]
[1762440326006,0.88,158.6,158.51,22.77062582]
[1762440326211,0.14216157,158.59,158.56,6.83001587]
[1762440326425,0.68,158.59,158.51,6.99875023]
[1762440326728,0.14216157,158.58,158.55,6.83001587]
[1762440326946,0.14216157,158.58,158.56,6.83001587]
[1762440327238,0.68,158.57,158.54,6.83001587]
[1762440327436,0.68,158.57,158.53,6.83001587]
[1762440327635,0.68,158.57,158.55,6.83001587]
[1762440327948,0.2,158.6,158.56,6.83001587]
[1762440328108,0.2,158.6,158.59,6.83001587]
[1762440328309,0.2,158.6,158.54,22.07639681]
[1762440328528,0.2,158.6,158.59,6.83001587]
[1762440329205,0.2,158.6,158.59,7.52001587]
[1762440329526,0.2,158.6,158.59,13.13558368]
[1762440329728,0.2,158.6,158.59,23.61441137]
[1762440329910,0.2,158.6,158.59,31.43441137]
[1762440330514,0.2,158.61,158.6,30.38082769]
[1762440330716,0.2,158.64,158.6,24.91153802]
[1762440330918,0.2,158.66,158.63,37.21084356]
[1762440331222,0.2,158.66,158.65,37.21084356]
[1762440331638,0.2,158.66,158.65,44.01402666]
[1762440332156,0.2,158.66,158.65,51.83402666]
[1762440332630,0.2,158.66,158.65,35.24201587]
[1762440332826,0.2,158.66,158.65,33.72519897]
[1762440333013,0.2,158.66,158.65,35.24201587]
[1762440333209,0.2,158.66,158.65,33.72519897]
[1762440333516,0.88,158.66,158.62,0.63043752]
[1762440333730,0.2,158.66,158.65,6.83001587]
[1762440334815,0.2,158.66,158.64,7.82]
[1762440335115,0.88,158.66,158.64,6.83001587]
[1762440335322,0.88,158.66,158.65,6.83001587]
[1762440335538,0.88,158.66,158.64,6.83001587]
[1762440335720,0.2,158.66,158.65,6.83001587]
[1762440336327,0.2,158.69,158.65,7.33001587]
[1762440336625,0.2,158.69,158.68,6.83001587]